fUST/lending_fUST_20250622
["ID","MTS","AMOUNT","RATE_DAILY","PERIOD"]
[366991386,1750607447429,-999.87,0.00021917,3]
[366991387,1750607447439,-1321.0,0.00021917,3]
[366991388,1750607447448,-460.0,0.00021917,3]
[366991389,1750607447458,-566.98,0.00021917,3]
[366991390,1750607447468,-460.0,0.00021917,3]
[366991391,1750607447478,-566.23,0.00021917,3]
[366991392,1750607447488,-500.0,0.00021917,3]
[366991393,1750607447499,-4991.14,0.00021917,3]
[366991394,1750607447509,-460.0,0.00021917,3]
[366991395,1750607447520,-460.0,0.00021917,3]
[366991396,1750607447530,-500.0,0.00021917,3]
[366991397,1750607447540,-460.0,0.00021917,3]
[366991398,1750607447549,-460.0,0.00021917,3]
[366991399,1750607447559,-500.0,0.00021917,3]
[366991400,1750607447568,-460.0,0.00021917,3]
[366991401,1750607447578,-460.0,0.00021917,3]
[366991402,1750607447588,-460.0,0.00021917,3]
[366991403,1750607447598,-500.0,0.00021917,3]
[366991404,1750607447607,-403.45563093,0.00021917,3]
[366991405,1750607447617,-460.0,0.00021917,3]
[366991406,1750607447626,-535.4233485,0.00021917,3]
[366991407,1750607447636,-500.0,0.00021917,3]
[366991408,1750607447646,-1018.33,0.00021917,3]
[366991409,1750607447655,-12551.52821599,0.00021917,3]
[366991410,1750607447665,-460.0,0.00021917,3]
[366991411,1750607447675,-513.64,0.00021917,3]
[366991412,1750607447685,-460.0,0.00021917,3]
[366991413,1750607447696,-460.0,0.00021917,3]
[366991414,1750607447706,-500.0,0.00021917,3]
[366991415,1750607447716,-500.0,0.00021917,3]
[366991416,1750607447725,-503.32344317,0.00021917,3]
[366991417,1750607447735,-460.0,0.00021917,3]
[366991418,1750607447745,-460.0,0.00021917,3]
[366991419,1750607447755,-460.0,0.00021917,3]
[366991420,1750607447765,-1852.31,0.00021917,3]
[366991421,1750607447774,-1852.31,0.00021917,3]
[366991422,1750607447784,-1852.31,0.00021917,3]
[366991423,1750607447794,-500.0,0.00021917,3]
[366991424,1750607447804,-500.0,0.00021917,3]
[366991425,1750607447813,-460.0,0.00021917,3]
[366991426,1750607447823,-1852.31,0.00021917,3]
[366991427,1750607447833,-1852.31,0.00021917,3]
[366991428,1750607447843,-460.0,0.00021917,3]
[366991429,1750607447853,-1852.31,0.00021917,3]
[366991430,1750607447862,-460.0,0.00021917,3]
[366991431,1750607447872,-1852.31,0.00021917,3]
[366991432,1750607447882,-1852.31,0.00021917,3]
[366991433,1750607447891,-1852.31,0.00021917,3]
[366991434,1750607447901,-476.23471879,0.00021917,3]
[366991435,1750607447910,-460.0,0.00021917,3]
[366991436,1750607447920,-1852.31,0.00021917,3]
[366991437,1750607447930,-13590.79,0.00021917,3]
[366991438,1750607447940,-460.0,0.00021917,3]
[366991439,1750607447950,-1852.31,0.00021917,3]
[366991440,1750607447959,-460.0,0.00021917,3]
[366991441,1750607447969,-2827.62,0.00021917,3]
[366991442,1750607447979,-1852.31,0.00021917,3]
[366991443,1750607447988,-1852.31,0.00021917,3]
[366991444,1750607447998,-1852.31,0.00021917,3]
[366991446,1750607448008,-468.2169293,0.00021917,3]
[366991448,1750607448017,-460.0,0.00021917,3]
[366991449,1750607448027,-1852.31,0.00021917,3]
[366991450,1750607448037,-1852.31,0.00021917,3]
[366991451,1750607448046,-460.0,0.00021917,3]
[366991452,1750607448055,-1852.31,0.00021917,3]
[366991453,1750607448065,-1852.31,0.00021917,3]
[366991454,1750607448075,-1852.31,0.00021917,3]
[366991455,1750607448085,-1852.31,0.00021917,3]
[366991456,1750607448094,-1852.31,0.00021917,3]
[366991457,1750607448104,-1852.31,0.00021917,3]
[366991458,1750607448113,-460.0,0.00021917,3]
[366991459,1750607448123,-1852.31,0.00021917,3]
[366991460,1750607448133,-1852.38524354,0.00021917,3]
[366991461,1750607448143,-460.0,0.00021917,3]
[366991462,1750607448152,-460.0,0.00021917,3]
[366991463,1750607448162,-460.0,0.00021917,3]
[366991464,1750607448172,-460.0,0.00021917,3]
[366991465,1750607448184,-460.0,0.00021917,3]
[366991466,1750607448194,-539.94,0.00021917,3]
[366991467,1750607448204,-500.0,0.00021917,3]
[366991468,1750607448214,-460.0,0.00021917,3]
[366991469,1750607448225,-460.0,0.00021917,3]
[366991470,1750607448235,-460.0,0.00021917,3]
[366991471,1750607448245,-460.0,0.00021917,3]
[366991472,1750607448255,-500.0,0.00021917,2]
[366991473,1750607448264,-500.0,0.00021917,3]
[366991474,1750607448274,-462.19509725,0.00021917,3]
[366991475,1750607448285,-460.0,0.00021917,3]
[366991476,1750607448295,-500.0,0.00021917,3]
[366991477,1750607448305,-460.0,0.00021917,3]
[366991478,1750607448315,-460.0,0.00021917,3]
[366991479,1750607448324,-460.0,0.00021917,3]
[366991480,1750607448334,-460.0,0.00021917,3]
[366991481,1750607448345,-460.0,0.00021917,3]
[366991482,1750607448357,-460.0,0.00021917,3]
[366991483,1750607448367,-657.13,0.00021917,3]
[366991484,1750607448376,-460.0,0.00021917,2]
[366991485,1750607448386,-460.0,0.00021917,3]
[366991486,1750607448397,-460.0,0.00021917,3]
[366991487,1750607448407,-460.0,0.00021917,3]
[366991488,1750607448417,-500.0,0.00021917,3]
[366991489,1750607448430,-4238.13,0.00021917,3]
[366991490,1750607448441,-500.0,0.00021917,3]
[366991491,1750607448451,-1090.87,0.00021917,3]
[366991492,1750607448461,-460.0,0.00021917,3]
[366991493,1750607448471,-460.0,0.00021917,3]
[366991494,1750607448481,-500.0,0.00021917,2]
[366991495,1750607448492,-500.0,0.00021917,3]
[366991496,1750607448503,-883.81,0.00021917,3]
[366991497,1750607448514,-460.0,0.00021917,3]
[366991498,1750607448524,-151.0,0.00021917,3]
[366991499,1750607448534,-151.0,0.00021917,3]
[366991500,1750607448544,-460.0,0.00021917,3]
[366991501,1750607448554,-205.43907,0.00021918,2]
[366991502,1750607448564,-205.43907,0.00021918,2]
[366991503,1750607448575,-205.43907,0.00021918,2]
[366991504,1750607448585,-1315.8026223,0.00021918,7]
[366991505,1750607448595,-205.43907,0.00021918,2]
[366991506,1750607448605,-205.43907,0.00021918,2]
[366991507,1750607448615,-205.43907,0.00021918,2]
[366991508,1750607448625,-166.0,0.00021918,2]
[366991509,1750607448635,-576.23495376,0.00021918,7]
[366991510,1750607448645,-150.0,0.00021918,2]
[366991511,1750607448655,-500.0,0.00021918,2]
[366991512,1750607448665,-500.0,0.00021918,2]
[366991513,1750607448675,-500.0,0.00021918,2]
[366991514,1750607448687,-161.36289346,0.00021918,2]
[366991515,1750607448697,-151.0,0.00021944,3]
[366991516,1750607448708,-151.0,0.00021944,3]
[366991517,1750607448718,-151.0,0.00021944,3]
[366991518,1750607448729,-500.0,0.00021944,3]
[366991519,1750607448739,-500.0,0.00021944,3]
[366991520,1750607448749,-500.0,0.00021944,3]
[366991521,1750607448759,-500.0,0.00021944,3]
[366991522,1750607448769,-500.0,0.00021944,3]
[366991523,1750607448780,-500.0,0.00021944,3]
[366991524,1750607448790,-151.0,0.00021944,3]
[366991525,1750607448801,-600.76470734,0.00021944,3]
[366991526,1750607448811,-151.0,0.00021944,3]
[366991527,1750607448822,-500.0,0.00021944,3]
[366991528,1750607448832,-500.0,0.00021944,3]
[366991529,1750607448842,-500.0,0.00021944,3]
[366991530,1750607448852,-500.0,0.00021944,3]
[366991531,1750607448863,-151.0,0.00021944,3]
[366991532,1750607448874,-151.0,0.00021944,3]
[366991533,1750607448884,-151.0,0.00021944,3]
[366991534,1750607448894,-151.0,0.00021944,3]
[366991535,1750607448904,-155.37446854,0.00021944,3]
[366991536,1750607448914,-500.0,0.00021944,3]
[366991537,1750607448925,-500.0,0.00021944,3]
[366991538,1750607448935,-2575.0,0.00021944,3]
[366991539,1750607448946,-1321.0,0.00021944,3]
[366991540,1750607448956,-500.0,0.00021944,3]
[366991541,1750607448966,-500.0,0.00021944,3]
[366991542,1750607448976,-500.0,0.00021944,3]
[366991543,1750607448986,-500.0,0.00021944,3]
[366991544,1750607448996,-500.0,0.00021944,3]
[366991545,1750607449007,-500.0,0.00021944,3]
[366991546,1750607449017,-500.0,0.00021944,3]
[366991547,1750607449027,-500.0,0.00021944,3]
[366991548,1750607449037,-593.54427277,0.00021944,2]
[366991549,1750607449047,-610.36279538,0.00021944,3]
[366991550,1750607449057,-500.0,0.00021944,3]
[366991551,1750607449067,-500.0,0.00021944,3]
[366991552,1750607449077,-500.0,0.00021944,3]
[366991553,1750607449087,-500.0,0.00021944,2]
[366991554,1750607449097,-500.0,0.00021944,3]
[366991555,1750607449107,-151.0,0.00021944,3]
[366991556,1750607449118,-176.14583461,0.00021954,2]
[366991557,1750607449128,-599.01,0.00021968,9]
[366991558,1750607449138,-292.34634449,0.00021972,3]
[366991559,1750607449147,-248.75438307,0.00021972,3]
[366991560,1750607449158,-151.0,0.00021972,3]
[366991561,1750607449168,-582.52493379,0.00021972,3]
[366991562,1750607449178,-500.0,0.00021972,3]
[366991563,1750607449190,-500.0,0.00021972,3]
[366991564,1750607449206,-500.0,0.00021972,3]
[366991565,1750607449222,-500.0,0.00021972,3]
[366991566,1750607449234,-500.0,0.00021972,3]
[366991567,1750607449244,-151.0,0.00021972,3]
[366991568,1750607449254,-151.0,0.00021972,3]
[366991569,1750607449263,-500.0,0.00021972,3]
[366991570,1750607449273,-500.0,0.00021972,3]
[366991571,1750607449283,-500.0,0.00021972,3]
[366991572,1750607449294,-500.0,0.00021972,3]
[366991573,1750607449305,-237.72611499,0.00021972,3]
[366991574,1750607449316,-151.0,0.00021972,3]
[366991575,1750607449326,-282.52147354,0.00021972,3]
[366991576,1750607449336,-151.0,0.00021972,3]
[366991577,1750607449352,-500.0,0.00021972,3]
[366991578,1750607449364,-500.0,0.00021972,3]
[366991579,1750607449374,-2575.0,0.00021972,3]
[366991580,1750607449385,-1321.0,0.00021972,3]
[366991581,1750607449395,-211.55370885,0.00021972,3]
[366991582,1750607449405,-500.0,0.00021972,3]
[366991583,1750607449416,-500.0,0.00021972,3]
[366991584,1750607449428,-500.0,0.00021972,3]
[366991585,1750607449439,-500.0,0.00021972,3]
[366991586,1750607449450,-500.0,0.00021972,3]
[366991587,1750607449460,-500.0,0.00021972,3]
[366991588,1750607449470,-500.0,0.00021972,3]
[366991589,1750607449480,-500.0,0.00021972,3]
[366991590,1750607449490,-295.83919408,0.00021972,3]
[366991591,1750607449500,-465.52289645,0.00021972,3]
[366991592,1750607449509,-172.80211512,0.00021972,2]
[366991593,1750607449519,-500.0,0.00021972,3]
[366991594,1750607449528,-151.0,0.00021972,3]
[366991595,1750607449538,-160.33928117,0.00021973,2]
[366991596,1750607449548,-500.0,0.00021973,2]
[366991597,1750607449558,-500.0,0.00021973,2]
[366991598,1750607449568,-504.11169704,0.00021973,2]
[366991599,1750607449578,-500.0,0.00021973,2]
[366991600,1750607449588,-500.0,0.00021973,2]
[366991601,1750607449598,-500.0,0.00021973,2]
[366991602,1750607449608,-440.1212776,0.00021973,2]
[366991603,1750607449617,-500.0,0.00021973,2]
[366991604,1750607449627,-500.0,0.00021973,2]
[366991605,1750607449637,-500.0,0.00021973,2]
[366991606,1750607449647,-500.0,0.00021973,2]
[366991607,1750607449656,-621.05323907,0.00021973,2]
[366991608,1750607449667,-500.0,0.00021973,2]
[366991609,1750607449679,-500.0,0.00021973,2]
[366991610,1750607449697,-500.0,0.00021973,2]
[366991611,1750607449908,-500.0,0.00021973,2]
[366991612,1750607449918,-500.0,0.00021973,2]
[366991613,1750607449929,-500.0,0.00021973,2]
[366991614,1750607449939,-500.0,0.00021973,2]
[366991615,1750607449949,-500.0,0.00021973,2]
[366991616,1750607449959,-500.0,0.00021973,2]
[366991617,1750607449968,-500.0,0.00021973,2]
[366991618,1750607449977,-500.0,0.00021973,2]
[366991619,1750607449987,-500.0,0.00021973,2]
[366991620,1750607449998,-500.0,0.00021973,2]
[366991621,1750607450008,-500.0,0.00021973,2]
[366991622,1750607450018,-500.0,0.00021973,2]
[366991623,1750607450028,-500.0,0.00021973,2]
[366991624,1750607450038,-611.40531728,0.00021973,2]
[366991625,1750607450048,-500.0,0.00021973,2]
[366991626,1750607450058,-500.0,0.00021973,2]
[366991627,1750607450068,-500.0,0.00021973,2]
[366991628,1750607450077,-500.0,0.00021973,2]
[366991629,1750607450087,-500.0,0.00021973,2]
[366991630,1750607450096,-288.3812181,0.00021973,2]
[366991631,1750607450106,-500.0,0.00021973,2]
[366991632,1750607450115,-500.0,0.00021973,2]
[366991633,1750607450125,-500.0,0.00021973,2]
[366991634,1750607450135,-500.0,0.00021973,2]
[366991635,1750607450145,-500.0,0.00021973,2]
[366991636,1750607450154,-500.0,0.00021973,2]
[366991637,1750607450163,-500.0,0.00021973,2]
[366991638,1750607450173,-500.0,0.00021973,2]
[366991639,1750607450182,-500.0,0.00021973,2]
[366991640,1750607450192,-500.0,0.00021973,2]
[366991641,1750607450201,-209.96351216,0.00021973,2]
[366991642,1750607450211,-500.0,0.00021973,2]
[366991643,1750607450222,-286.367204,0.00021973,7]
[366991644,1750607450232,-7029.90818415,0.00021981,2]
[366991645,1750607450242,-200.0,0.00021999,2]
[366991646,1750607450252,-238.15344786,0.00021999,3]
[366991647,1750607450262,-500.0,0.00021999,3]
[366991648,1750607450271,-500.0,0.00021999,3]
[366991649,1750607450281,-500.0,0.00021999,3]
[366991650,1750607450290,-500.0,0.00021999,3]
[366991651,1750607450300,-500.0,0.00021999,3]
[366991652,1750607450309,-151.0,0.00021999,3]
[366991653,1750607450319,-165.17147178,0.00021999,3]
[366991654,1750607450328,-439.32236739,0.00021999,3]
[366991655,1750607450338,-500.0,0.00021999,3]
[366991656,1750607450350,-500.0,0.00021999,3]
[366991657,1750607450360,-500.0,0.00021999,3]
[366991658,1750607450370,-151.0,0.00021999,3]
[366991659,1750607450380,-151.0,0.00021999,3]
[366991660,1750607450391,-500.0,0.00021999,3]
[366991661,1750607450400,-500.0,0.00021999,3]
[366991662,1750607450410,-2575.0,0.00021999,3]
[366991663,1750607450419,-1321.0,0.00021999,3]
[366991664,1750607450430,-500.0,0.00021999,3]
[366991665,1750607450441,-500.0,0.00021999,3]
[366991666,1750607450450,-500.0,0.00021999,3]
[366991667,1750607450460,-500.0,0.00021999,3]
[366991668,1750607450470,-500.0,0.00021999,3]
[366991669,1750607450479,-500.0,0.00021999,3]
[366991670,1750607450489,-500.0,0.00021999,3]
[366991671,1750607450498,-500.0,0.00021999,3]
[366991672,1750607450508,-500.0,0.00021999,3]
[366991673,1750607450518,-160.0,0.00022,6]
[366991674,1750607450528,-160.0,0.00022,6]
[366991675,1750607450538,-161.57211871,0.00022,6]
[366991676,1750607450547,-27989.63160814,0.00022,2]
[366991677,1750607450557,-246582.83230485,0.00022,2]
[366991678,1750607450566,-504.15,0.00022,2]
[366991679,1750607450576,-25498.3341729,0.00022,2]
[366991680,1750607450585,-97826.08169314,0.00022,7]
[366991681,1750607450595,-161.26034154,0.00022,2]
[366991682,1750607450604,-1000.0,0.00022,22]
[366991683,1750607450613,-155.976948,0.00022,7]
[366991684,1750607450622,-155.976948,0.00022,7]
[366991685,1750607450632,-151.0,0.00022,7]
[366991686,1750607450642,-151.0,0.00022,7]
[366991687,1750607450651,-151.0,0.00022,7]
[366991688,1750607450662,-291.098667,0.00022,7]
[366991689,1750607450671,-151.0,0.00022,7]
[366991690,1750607450680,-151.0,0.00022,7]
[366991691,1750607450691,-151.0,0.00022,7]
[366991692,1750607450701,-151.0,0.00022,7]
[366991693,1750607450710,-151.0,0.00022,7]
[366991694,1750607450720,-257.1357,0.00022,7]
[366991695,1750607450729,-257.1357,0.00022,7]
[366991696,1750607450738,-171.344944,0.00022,7]
[366991697,1750607450748,-151.0,0.00022,7]
[366991698,1750607450757,-9535.88,0.00022,7]
[366991699,1750607450766,-128129.57,0.00022,2]
[366991700,1750607450775,-205.43907,0.00022,7]
[366991701,1750607450785,-205.43907,0.00022,7]
[366991702,1750607450795,-213.59462818,0.00022,7]
[366991703,1750607450805,-160.0,0.00022,3]
[366991704,1750607450814,-160.0,0.00022,7]
[366991705,1750607450824,-167.0,0.00022,2]
[366991706,1750607450834,-846.39664074,0.00022,7]
[366991707,1750607450844,-200.0,0.00022,10]
[366991708,1750607450854,-200.0,0.00022,10]
[366991709,1750607450864,-200.0,0.00022,10]
[366991710,1750607450873,-200.0,0.00022,10]
[366991711,1750607450883,-200.0,0.00022,10]
[366991712,1750607450892,-200.0,0.00022,10]
[366991713,1750607450902,-212.457258,0.00022,10]
[366991714,1750607450911,-12551.52821599,0.00022,7]
[366991715,1750607450920,-566.0,0.00022,2]
[366991716,1750607450930,-4727.19969188,0.00022003,6]
[366991717,1750607450942,-408.34192971,0.00022005,2]
[366991718,1750607450952,-255.0,0.00022005,2]
[366991719,1750607450962,-255.0,0.00022005,2]
[366991720,1750607450971,-255.0,0.00022005,2]
[366991721,1750607450981,-187.79783599,0.00022005,2]
[366991722,1750607450991,-176.14583461,0.00022023,2]
[366991723,1750607451000,-511.79980367,0.00022027,3]
[366991724,1750607451010,-326.24609778,0.00022027,3]
[366991725,1750607451020,-275.62241272,0.00022027,3]
[366991726,1750607451029,-500.0,0.00022027,3]
[366991727,1750607451039,-500.0,0.00022027,3]
[366991728,1750607451048,-201.44536329,0.00022027,3]
[366991729,1750607451058,-500.0,0.00022027,3]
[366991730,1750607451068,-404.78883575,0.00022027,3]
[366991731,1750607451078,-500.0,0.00022027,3]
[366991732,1750607451088,-245.0,0.00022027,3]
[366991733,1750607451098,-164.12103916,0.00022027,3]
[366991734,1750607451107,-590.32576065,0.00022027,3]
[366991735,1750607451117,-500.0,0.00022027,3]
[366991736,1750607451127,-2575.0,0.00022027,3]
[366991737,1750607451136,-1321.0,0.00022027,3]
[366991738,1750607451146,-500.0,0.00022027,3]
[366991739,1750607451156,-500.0,0.00022027,3]
[366991740,1750607451166,-500.0,0.00022027,3]
[366991741,1750607451176,-500.0,0.00022027,3]
[366991742,1750607451188,-500.0,0.00022027,3]
[366991743,1750607451197,-500.0,0.00022027,3]
[366991744,1750607451207,-500.0,0.00022027,3]
[366991745,1750607451217,-500.0,0.00022027,3]
[366991746,1750607451227,-500.0,0.00022027,3]
[366991747,1750607451237,-1373.84,0.00022028,3]
[366991748,1750607451246,-686.92,0.00022028,3]
[366991749,1750607451256,-343.46,0.00022028,3]
[366991750,1750607451265,-215.0738,0.00022037,2]
[366991751,1750607451275,-500.0,0.00022054,3]
[366991752,1750607451285,-500.0,0.00022054,3]
[366991753,1750607451294,-500.0,0.00022054,3]
[366991754,1750607451304,-500.0,0.00022054,3]
[366991755,1750607451314,-500.0,0.00022054,3]
[366991756,1750607451323,-2575.0,0.00022054,3]
[366991757,1750607451333,-1321.0,0.00022054,3]
[366991758,1750607451343,-433.56355514,0.00022054,3]
[366991759,1750607451358,-468.7313603,0.00022054,3]
[366991760,1750607451368,-500.0,0.00022054,3]
[366991761,1750607451378,-500.0,0.00022054,3]
[366991762,1750607451387,-500.0,0.00022054,3]
[366991763,1750607451399,-500.0,0.00022054,3]
[366991764,1750607451409,-500.0,0.00022054,3]
[366991765,1750607451419,-500.0,0.00022054,3]
[366991766,1750607451429,-500.0,0.00022054,3]
[366991767,1750607451442,-270.84747718,0.00022072,2]
[366991768,1750607451453,-500.0,0.00022081,3]
[366991769,1750607451463,-500.0,0.00022081,3]
[366991770,1750607451473,-151.00530405,0.00022081,3]
[366991771,1750607451483,-500.0,0.00022081,3]
[366991772,1750607451493,-500.0,0.00022081,3]
[366991773,1750607451503,-2575.0,0.00022081,3]
[366991774,1750607451513,-1321.0,0.00022081,3]
[366991775,1750607451522,-500.0,0.00022081,3]
[366991776,1750607451532,-500.0,0.00022081,3]
[366991777,1750607451542,-500.0,0.00022081,3]
[366991778,1750607451553,-500.0,0.00022081,3]
[366991779,1750607451564,-500.0,0.00022081,3]
[366991780,1750607451574,-500.0,0.00022081,3]
[366991781,1750607451584,-500.0,0.00022081,3]
[366991782,1750607451593,-176.14583461,0.00022091,2]
[366991783,1750607451603,-326.53255678,0.00022099,2]
[366991784,1750607451612,-800.0,0.000221,4]
[366991785,1750607451623,-72052.23685955,0.000221,2]
[366991786,1750607451634,-151.0,0.000221,7]
[366991787,1750607451643,-152.501596,0.000221,7]
[366991788,1750607451654,-5255.49,0.000221,7]
[366991789,1750607451664,-627.1428119,0.00022109,3]
[366991790,1750607451674,-500.0,0.00022109,3]
[366991791,1750607451685,-500.0,0.00022109,3]
[366991792,1750607451694,-500.0,0.00022109,3]
[366991793,1750607451703,-2575.0,0.00022109,3]
[366991794,1750607451715,-1321.0,0.00022109,3]
[366991795,1750607451724,-634.70726744,0.00022109,3]
[366991796,1750607451733,-500.0,0.00022109,3]
[366991797,1750607451742,-500.0,0.00022109,3]
[366991798,1750607451752,-500.0,0.00022109,3]
[366991799,1750607451762,-500.0,0.00022109,3]
[366991800,1750607451771,-398.41750311,0.00022109,3]
[366991801,1750607451781,-500.0,0.00022109,3]
[366991802,1750607451790,-255.0,0.0002211,2]
[366991803,1750607451800,-181.0140692,0.00022115,2]
[366991804,1750607451809,-500.0,0.00022136,3]
[366991805,1750607451819,-500.0,0.00022136,3]
[366991806,1750607451828,-500.0,0.00022136,3]
[366991807,1750607451838,-2575.0,0.00022136,3]
[366991808,1750607451847,-1321.0,0.00022136,3]
[366991809,1750607451857,-500.0,0.00022136,3]
[366991810,1750607451866,-500.0,0.00022136,3]
[366991811,1750607451876,-500.0,0.00022136,3]
[366991812,1750607451886,-500.0,0.00022136,3]
[366991813,1750607451895,-371.35927513,0.00022136,3]
[366991814,1750607451905,-4727.19969188,0.00022141,6]
[366991815,1750607451915,-500.0,0.00022164,3]
[366991816,1750607451925,-500.0,0.00022164,3]
[366991817,1750607451937,-500.0,0.00022164,3]
[366991818,1750607451947,-2575.0,0.00022164,3]
[366991819,1750607451959,-1321.0,0.00022164,3]
[366991820,1750607451971,-500.0,0.00022164,3]
[366991821,1750607451986,-515.41491376,0.00022164,3]
[366991822,1750607451997,-500.0,0.00022164,3]
[366991823,1750607452007,-500.0,0.00022164,3]
[366991824,1750607452016,-500.0,0.00022173,2]
[366991825,1750607452026,-500.0,0.00022173,2]
[366991826,1750607452036,-500.0,0.00022173,2]
[366991827,1750607452045,-500.0,0.00022191,3]
[366991828,1750607452055,-500.0,0.00022191,3]
[366991829,1750607452064,-354.56723296,0.00022191,3]
[366991830,1750607452074,-2575.0,0.00022191,3]
[366991831,1750607452083,-1321.0,0.00022191,3]
[366991832,1750607452093,-500.0,0.00022191,3]
[366991833,1750607452103,-500.0,0.00022191,3]
[366991834,1750607452112,-500.0,0.00022191,3]
[366991835,1750607452122,-691.1,0.00022191,3]
[366991836,1750607452131,-460.0,0.00022191,3]
[366991837,1750607452141,-460.0,0.00022191,3]
[366991838,1750607452151,-460.0,0.00022191,3]
[366991839,1750607452160,-460.0,0.00022191,3]
[366991840,1750607452170,-460.0,0.00022191,3]
[366991841,1750607452180,-460.0,0.00022191,3]
[366991842,1750607452193,-502.33482902,0.00022191,3]
[366991843,1750607452203,-460.0,0.00022191,3]
[366991844,1750607452212,-460.0,0.00022191,3]
[366991845,1750607452221,-530.96,0.00022191,3]
[366991846,1750607452231,-460.0,0.00022191,3]
[366991847,1750607452288,-460.0,0.00022191,3]
[366991848,1750607452298,-460.0,0.00022191,3]
[366991849,1750607452308,-460.0,0.00022191,3]
[366991850,1750607452318,-460.0,0.00022191,3]
[366991851,1750607452327,-460.0,0.00022191,3]
[366991852,1750607452337,-440.0,0.00022191,3]
[366991853,1750607452349,-460.0,0.00022191,3]
[366991854,1750607452359,-460.0,0.00022191,3]
[366991855,1750607452368,-228.62522901,0.00022191,3]
[366991856,1750607452377,-460.0,0.00022191,3]
[366991857,1750607452388,-463.9980877,0.00022191,3]
[366991858,1750607452397,-460.0,0.00022191,3]
[366991859,1750607452406,-460.0,0.00022191,3]
[366991860,1750607452415,-460.0,0.00022191,3]
[366991861,1750607452425,-336.04756319,0.00022191,3]
[366991862,1750607452435,-460.0,0.00022191,3]
[366991863,1750607452444,-460.0,0.00022191,3]
[366991864,1750607452453,-460.0,0.00022191,3]
[366991865,1750607452460,-460.0,0.00022191,3]
[366991866,1750607452469,-460.0,0.00022191,3]
[366991867,1750607452478,-460.0,0.00022191,3]
[366991868,1750607452487,-400.0,0.00022191,3]
[366991869,1750607452497,-460.39960909,0.00022191,3]
[366991870,1750607452506,-679.05,0.00022191,3]
[366991871,1750607452516,-460.0,0.00022191,3]
[366991872,1750607452525,-460.0,0.00022191,3]
[366991873,1750607452534,-460.0,0.00022191,3]
[366991874,1750607452543,-460.0,0.00022191,3]
[366991875,1750607452552,-497.28,0.00022191,3]
[366991876,1750607452562,-460.0,0.00022191,3]
[366991877,1750607452571,-460.0,0.00022191,3]
[366991878,1750607452580,-460.0,0.00022191,3]
[366991879,1750607452589,-460.0,0.00022191,3]
[366991880,1750607452600,-376.87607204,0.00022191,3]
[366991881,1750607452609,-460.0,0.00022191,3]
[366991882,1750607452620,-460.0,0.00022191,3]
[366991883,1750607452629,-462.3558282,0.00022191,3]
[366991884,1750607452639,-365.28016394,0.00022191,3]
[366991885,1750607452648,-460.0,0.00022191,3]
[366991886,1750607452657,-449.26136236,0.00022191,3]
[366991887,1750607452667,-421.59130579,0.00022191,3]